bitfinex/quotes_BTCUSD_20230110
["timestamp","ask_amount","ask_price","bid_price","bid_amount"]
[1673332652126,1.28890088,17207.0,17206.0,0.00754841]
[1673332652621,1.69084966,17207.0,17206.0,0.00754841]
[1673332655654,1.69075514,17207.0,17206.0,0.00754841]
[1673332655905,1.28880636,17207.0,17206.0,0.00754841]
[1673332656417,1.28796433,17207.0,17206.0,0.00754841]
[1673332656666,1.28880637,17207.0,17206.0,0.00754841]
[1673332658454,1.63596999,17207.0,17206.0,0.00754841]
[1673332659668,1.28880637,17207.0,17206.0,0.00754841]
[1673332659924,1.28796433,17207.0,17206.0,0.00754841]
[1673332660147,1.63511109,17207.0,17206.0,0.00754841]
[1673332661176,1.28796433,17207.0,17206.0,0.00754841]
[1673332661689,1.63510033,17207.0,17206.0,0.00754841]
[1673332661941,1.63510109,17207.0,17206.0,0.00754841]
[1673332662748,1.28796433,17207.0,17206.0,0.00754841]
[1673332663004,1.6350992,17207.0,17206.0,0.00754841]
[1673332663573,1.63594124,17207.0,17206.0,0.00754841]
[1673332664812,1.54125746,17207.0,17206.0,0.00754841]
[1673332665064,1.36780086,17207.0,17206.0,0.00754841]
[1673332666042,1.3686429,17207.0,17206.0,0.00754841]
[1673332666538,1.5420995,17207.0,17206.0,0.00754841]
[1673332666786,1.80241267,17207.0,17206.0,0.00754841]
[1673332667045,1.5420995,17207.0,17206.0,0.00754841]
[1673332667557,1.59071762,17207.0,17206.0,0.00754841]
[1673332668075,1.9926664,17207.0,17206.0,0.00754841]
[1673332668833,1.29071762,17207.0,17206.0,0.00754841]
[1673332669081,1.6926664,17207.0,17206.0,0.00754841]
[1673332669319,1.63777526,17207.0,17206.0,0.00754841]
[1673332672201,1.54202227,17207.0,17206.0,0.00754841]
[1673332672447,1.63735658,17207.0,17206.0,0.00754841]
[1673332672727,1.54118023,17207.0,17206.0,0.00754841]
[1673332672962,1.48298339,17207.0,17206.0,0.00754841]
[1673332673226,1.57831399,17207.0,17206.0,0.00754841]
[1673332675168,1.57840553,17207.0,17206.0,0.00754841]
[1673332675426,1.23125635,17207.0,17206.0,0.00754841]
[1673332676198,1.23209839,17207.0,17206.0,0.00754841]
[1673332676928,1.72755688,17207.0,17206.0,0.00754841]
[1673332677177,1.46486088,17207.0,17206.0,0.00754841]
[1673332677646,1.46486088,17207.0,17206.0,0.00745929]
[1673332680667,1.16486088,17207.0,17206.0,0.00745929]
[1673332680873,1.16401884,17207.0,17206.0,0.00745929]
[1673332681114,1.59803455,17207.0,17206.0,0.00745929]
[1673332681849,1.89803455,17207.0,17206.0,0.00745929]
[1673332682057,1.46401884,17207.0,17206.0,0.00745929]
[1673332682311,1.72671484,17207.0,17206.0,0.00745929]
[1673332683095,1.46401884,17207.0,17206.0,0.00745929]
[1673332684631,1.98520035,17207.0,17206.0,0.00745929]
[1673332684889,1.61863802,17207.0,17206.0,0.00745929]
[1673332686176,1.88133402,17207.0,17206.0,0.00745929]
[1673332687190,1.61863802,17207.0,17206.0,0.00745929]
[1673332687446,1.99907684,17207.0,17206.0,0.00745929]
[1673332687692,1.99900494,17207.0,17206.0,0.00745929]
[1673332688193,2.26170094,17207.0,17206.0,0.00745929]
[1673332688445,1.99900494,17207.0,17206.0,0.00745929]
[1673332688694,1.88126212,17207.0,17206.0,0.00745929]
[1673332688937,2.26170305,17207.0,17206.0,0.00745929]
[1673332689186,1.99900705,17207.0,17206.0,0.00745929]
[1673332689440,2.26170305,17207.0,17206.0,0.00745929]
[1673332690448,0.2,17206.0,17202.0,0.03115846]
[1673332690724,0.78134492,17203.0,17202.0,0.03115846]
[1673332690969,1.17892321,17203.0,17202.0,0.03100846]
[1673332691240,1.23712005,17203.0,17202.0,0.03100846]
[1673332691481,1.63866044,17203.0,17202.0,0.03100846]
[1673332691983,1.11785128,17203.0,17202.0,0.03100846]
[1673332692474,1.63788581,17203.0,17202.0,0.03100846]
[1673332692730,1.23625797,17203.0,17202.0,0.03100846]
[1673332692981,2.24376535,17203.0,17202.0,0.03100846]
[1673332693236,1.97613751,17203.0,17202.0,0.03100846]
[1673332693481,1.99626235,17203.0,17202.0,0.03100846]
[1673332694244,1.99710439,17203.0,17202.0,0.03100846]
[1673332694542,2.60366823,17203.0,17202.0,0.03100846]
[1673332694764,1.99710439,17203.0,17202.0,0.03100846]
[1673332695531,2.76025206,17203.0,17202.0,0.03100846]
[1673332696261,2.24021753,17203.0,17202.0,0.03100846]
[1673332696509,2.40941753,17203.0,17202.0,0.03100846]
[1673332697044,2.92945206,17203.0,17202.0,0.03100846]
[1673332698786,2.40941753,17203.0,17202.0,0.03100846]
[1673332699271,2.91799102,17203.0,17202.0,0.03100846]
[1673332699508,2.40941753,17203.0,17202.0,0.03100846]
[1673332700000,2.99035431,17203.0,17202.0,0.03100846]
[1673332700483,2.91591996,17203.0,17202.0,0.03100846]
[1673332700757,2.40941753,17203.0,17202.0,0.02198783]
[1673332703274,2.84138998,17203.0,17202.0,0.02198783]
[1673332703780,2.40941753,17203.0,17202.0,0.02198783]
[1673332704279,2.84126251,17203.0,17202.0,0.02198783]
[1673332704535,3.48812502,17203.0,17202.0,0.02198783]
[1673332704791,3.83361254,17203.0,17202.0,0.02198783]
[1673332705052,3.18675003,17203.0,17202.0,0.02198783]
[1673332705302,3.77811103,17203.0,17202.0,0.02198783]
[1673332705557,3.55373449,17203.0,17202.0,0.02198783]
[1673332706078,3.71752546,17203.0,17202.0,0.02198783]
[1673332706321,3.28568048,17203.0,17202.0,0.02198783]
[1673332707099,3.71752546,17203.0,17202.0,0.02198783]
[1673332707345,3.45840389,17203.0,17202.0,0.02198783]
[1673332707846,3.28566642,17203.0,17202.0,0.02198783]
[1673332708108,4.10609254,17203.0,17202.0,0.02198783]
[1673332708364,3.28566642,17203.0,17202.0,0.02198783]
[1673332710697,3.45841897,17203.0,17202.0,0.02198783]
[1673332710950,1.7781139,17203.0,17202.0,0.02198783]
[1673332711206,0.89811355,17203.0,17202.0,0.02198783]
[1673332711712,0.988057,17203.0,17202.0,0.02198783]
[1673332711965,1.38968484,17203.0,17202.0,0.02198783]
[1673332712227,0.988057,17203.0,17202.0,0.02198783]
[1673332712486,1.65979404,17203.0,17202.0,0.02198783]
[1673332712734,2.06142188,17203.0,17202.0,0.02198783]
[1673332712987,1.65979404,17203.0,17202.0,0.02198783]
[1673332713236,1.39709804,17203.0,17202.0,0.02198783]
[1673332713501,2.06142188,17203.0,17202.0,0.02198783]
[1673332713758,1.79872588,17203.0,17202.0,0.02198783]
[1673332714011,2.06142188,17203.0,17202.0,0.02198783]
[1673332714259,1.79872588,17203.0,17202.0,0.02198783]
[1673332714513,2.06226392,17203.0,17202.0,0.02198783]
[1673332715020,1.79956792,17203.0,17202.0,0.02198783]
[1673332715268,2.06226392,17203.0,17202.0,0.02198783]
[1673332716262,1.19895559,17203.0,17202.0,0.02198783]
[1673332716521,1.02620304,17203.0,17202.0,0.02198783]
[1673332716739,0.72620304,17203.0,17202.0,0.02198783]
[1673332718366,0.725361,17203.0,17202.0,0.58604945]
[1673332718873,0.725361,17203.0,17202.0,0.02198783]
[1673332719140,1.025361,17203.0,17202.0,0.02198783]
[1673332719962,0.725361,17203.0,17202.0,0.02198783]
[1673332720178,1.025361,17203.0,17202.0,0.02198783]
[1673332720429,0.725361,17203.0,17202.0,0.02198783]
[1673332720926,0.134,17203.0,17202.0,0.02198783]
[1673332721184,0.134,17203.0,17202.0,0.0218825]
[1673332721435,0.334,17203.0,17202.0,0.0218825]
[1673332722926,0.33484204,17203.0,17202.0,0.0218825]
[1673332723424,0.334,17203.0,17202.0,0.0218825]
[1673332723942,0.33484204,17203.0,17202.0,0.0218825]
[1673332724204,0.334,17203.0,17202.0,0.0218825]
[1673332726265,0.50675255,17203.0,17202.0,0.0218825]
[1673332727294,0.50759459,17203.0,17202.0,0.0218825]
[1673332727792,0.50675255,17203.0,17202.0,0.0218825]
[1673332728302,0.50759459,17203.0,17202.0,0.0218825]
[1673332729088,0.50675255,17203.0,17202.0,0.0218825]
[1673332729341,0.50759459,17203.0,17202.0,0.0218825]
[1673332729596,0.50675255,17203.0,17202.0,0.0218825]
[1673332730367,0.76586006,17203.0,17202.0,0.0218825]
[1673332730878,0.50675255,17203.0,17202.0,0.0218825]
[1673332731155,0.76586006,17203.0,17202.0,0.0218825]
[1673332731453,0.7667021,17203.0,17202.0,0.0218825]
[1673332734226,2.64289386,17203.0,17202.0,0.0218825]
[1673332734484,2.97674156,17203.0,17202.0,0.0218825]
[1673332734739,2.97673569,17203.0,17202.0,0.0218825]
[1673332734993,2.22856465,17203.0,17202.0,0.0218825]
[1673332735246,2.31241291,17203.0,17202.0,0.0218825]
[1673332735501,2.36749649,17203.0,17202.0,0.0218825]
[1673332736003,2.63019249,17203.0,17202.0,0.0218825]
[1673332737535,2.19834751,17203.0,17202.0,0.0218825]
[1673332738573,1.99980728,17203.0,17202.0,0.0218825]
[1673332738856,2.78848085,17203.0,17202.0,0.0218825]
[1673332739144,2.11576688,17203.0,17202.0,0.0218825]
[1673332739356,2.66619415,17203.0,17202.0,0.0218825]
[1673332740121,2.91619415,17203.0,17202.0,0.0218825]
[1673332743096,2.36576688,17203.0,17202.0,0.0218825]
[1673332743355,3.05562942,17203.0,17202.0,0.0218825]
[1673332743604,1.84573235,17203.0,17202.0,0.0218825]
[1673332743862,2.39160846,17203.0,17202.0,0.0218825]
[1673332744121,2.27564886,17203.0,17202.0,0.0218825]
[1673332745673,2.27564886,17203.0,17202.0,0.02178496]
[1673332746179,2.79580124,17203.0,17202.0,0.02178496]
[1673332746426,2.27564886,17203.0,17202.0,0.02178496]
[1673332747194,1.72977275,17203.0,17202.0,0.02178496]
[1673332748213,2.281145,17203.0,17202.0,0.02178496]
[1673332748725,1.89897275,17203.0,17202.0,0.02178496]
[1673332748994,2.46198084,17203.0,17202.0,0.02178496]
[1673332749279,2.98127472,17203.0,17202.0,0.02178496]
[1673332749535,2.92391992,17203.0,17202.0,0.02178496]
[1673332754944,2.403784,17203.0,17202.0,0.02178496]
[1673332755201,2.92391992,17203.0,17202.0,0.02178496]
[1673332763141,2.92307788,17203.0,17202.0,0.02178496]
[1673332763649,2.40294196,17203.0,17202.0,0.02178496]
[1673332766985,2.403784,17203.0,17202.0,0.02178496]
[1673332767230,2.92391992,17203.0,17202.0,0.02170577]
[1673332768257,2.39654666,17203.0,17202.0,0.02170577]
[1673332768511,2.22650462,17203.0,17202.0,0.02170577]
[1673332768764,1.26941812,17203.0,17202.0,0.38929849]
[1673332769007,1.70313671,17203.0,17202.0,0.38929849]
[1673332769250,1.70313671,17203.0,17202.0,0.02170577]
[1673332771868,2.05102156,17203.0,17202.0,0.02170577]
[1673332772130,1.70397875,17203.0,17202.0,0.02170577]
[1673332772762,2.05103402,17203.0,17202.0,0.02170577]
[1673332772982,1.70397875,17203.0,17202.0,0.02170577]
[1673332773675,1.73815734,17203.0,17202.0,0.02170577]
[1673332773893,1.7373153,17203.0,17202.0,0.02170577]
[1673332774109,1.73815734,17203.0,17202.0,0.02170577]
[1673332775178,1.7373153,17203.0,17202.0,0.02170577]
[1673332775464,1.17430721,17203.0,17202.0,0.02170577]
[1673332775715,1.39890708,17203.0,17202.0,0.02170577]
[1673332775981,1.51995339,17203.0,17202.0,0.02170577]
[1673332776266,1.39890708,17203.0,17202.0,0.02170577]
[1673332776493,1.65916287,17203.0,17202.0,0.02170577]
[1673332776819,1.22544428,17203.0,17202.0,0.02170577]
[1673332778485,1.22628632,17203.0,17202.0,0.02170577]
[1673332778748,1.51992564,17203.0,17202.0,0.02170577]
[1673332779051,1.51991646,17203.0,17202.0,0.02170577]
[1673332779593,1.5207585,17203.0,17202.0,0.02170577]
[1673332780360,1.51991646,17203.0,17202.0,0.02170577]
[1673332780615,1.5207585,17203.0,17202.0,0.02170577]
[1673332780887,1.51991646,17203.0,17202.0,0.02170577]
[1673332781431,1.2253597,17203.0,17202.0,0.02170577]
[1673332782217,1.22620174,17203.0,17202.0,0.02170577]
[1673332782730,1.2253597,17203.0,17202.0,0.02170577]
[1673332782993,1.65907829,17203.0,17202.0,0.02170577]
[1673332783249,1.2253597,17203.0,17202.0,0.02170577]
[1673332783504,1.39879939,17203.0,17202.0,0.02170577]
[1673332783776,1.2253597,17203.0,17202.0,0.02170577]
[1673332784567,0.85179546,17203.0,17202.0,0.53043676]
[1673332786359,0.59162425,17203.0,17202.0,0.53043676]
[1673332786873,0.41817859,17203.0,17202.0,0.53043676]
[1673332787138,0.59162425,17203.0,17202.0,0.53043676]
[1673332788461,0.59246629,17203.0,17202.0,0.53043676]
[1673332788708,0.59162425,17203.0,17202.0,0.53043676]
[1673332790571,0.41817859,17203.0,17202.0,0.53043676]
[1673332791108,0.41817859,17203.0,17202.0,0.89181076]
[1673332793291,0.41902063,17203.0,17202.0,0.53043676]
[1673332793586,0.41817859,17203.0,17202.0,0.53043676]
[1673332794757,0.59162425,17203.0,17202.0,0.53043676]
[1673332795274,0.41817859,17203.0,17202.0,0.53043676]
[1673332795537,0.59162425,17203.0,17202.0,0.53043676]
[1673332795789,0.41817859,17203.0,17202.0,0.89181076]
[1673332797827,0.41817859,17203.0,17202.0,0.53043676]
[1673332798585,0.41817859,17203.0,17202.0,0.89181076]
[1673332801092,0.59246629,17203.0,17202.0,0.53043676]
[1673332801336,0.59162425,17203.0,17202.0,0.53043676]
[1673332802341,0.59246629,17203.0,17202.0,0.02170577]
[1673332802875,0.85179546,17203.0,17202.0,0.02170577]
[1673332803396,0.8526375,17203.0,17202.0,0.02170577]
[1673332803920,0.85179546,17203.0,17202.0,0.02170577]
[1673332804692,0.85179546,17203.0,17202.0,0.38307977]
[1673332805192,0.85179546,17203.0,17202.0,0.02170577]
[1673332806972,1.0253597,17203.0,17202.0,0.02170577]
[1673332810147,1.19894236,17203.0,17202.0,0.02170577]
[1673332810407,0.85193246,17203.0,17202.0,0.02170577]
[1673332811197,1.0253597,17203.0,17202.0,0.02170577]
[1673332812463,1.1989629,17203.0,17202.0,0.38307977]
[1673332812718,1.0253597,17203.0,17202.0,0.38307977]
[1673332813255,1.0253597,17203.0,17202.0,0.02170577]
[1673332813514,0.85196553,17203.0,17202.0,0.59076621]
[1673332813779,0.59179432,17203.0,17202.0,0.95214021]
[1673332816341,0.59171297,17203.0,17202.0,0.95214021]
[1673332816843,0.85188418,17203.0,17202.0,0.95214021]
[1673332817355,0.85188418,17203.0,17202.0,0.59076621]
[1673332817974,0.85188418,17203.0,17202.0,0.95214021]
[1673332818638,0.85188418,17203.0,17202.0,1.11994021]
[1673332822560,0.85272622,17203.0,17202.0,1.11994021]
[1673332822818,1.02527835,17203.0,17202.0,1.11994021]
[1673332823097,1.35958414,17203.0,17202.0,0.18950577]
[1673332823345,1.9386047,17203.0,17202.0,0.18950577]
[1673332823596,1.93944674,17203.0,17202.0,0.18950577]
[1673332823862,1.9386047,17203.0,17202.0,0.18950577]
[1673332826600,1.93944674,17203.0,17202.0,0.18950577]
[1673332827106,1.9386047,17203.0,17202.0,0.02170577]
[1673332828103,1.93944674,17203.0,17202.0,0.02170577]
[1673332828350,1.9386047,17203.0,17202.0,0.02170577]
[1673332830432,1.93944674,17203.0,17202.0,0.02170577]
[1673332830944,1.9386047,17203.0,17202.0,0.02170577]
[1673332831687,1.94133431,17203.0,17202.0,0.02170577]
[1673332831940,1.62018737,17203.0,17202.0,0.02170577]
[1673332832193,1.4469192,17203.0,17202.0,0.02170577]
[1673332832446,1.62102941,17203.0,17202.0,0.38307977]
[1673332832694,1.62018737,17203.0,17202.0,0.38307977]
[1673332832943,1.62018737,17203.0,17202.0,0.02170577]
[1673332833695,1.62102941,17203.0,17202.0,0.02170577]
[1673332834424,1.62018737,17203.0,17202.0,0.02170577]
[1673332837176,1.62018737,17203.0,17202.0,0.38307977]
[1673332838413,1.62018737,17203.0,17202.0,0.02170577]
[1673332838671,1.62018737,17203.0,17202.0,0.02160364]
[1673332839174,1.79330273,17203.0,17202.0,0.02160364]
[1673332839423,2.05393209,17203.0,17202.0,0.02160364]
[1673332839690,1.44696235,17203.0,17202.0,0.02160364]
[1673332840189,1.62105554,17203.0,17202.0,0.02160364]
[1673332840453,1.6202135,17203.0,17202.0,0.02160364]
[1673332840974,1.6202135,17203.0,17202.0,0.38297764]
[1673332841511,1.79397106,17203.0,17202.0,0.38297764]
[1673332841736,1.44696116,17203.0,17202.0,0.38297764]
[1673332842236,1.44696116,17203.0,17202.0,0.02160364]
[1673332842747,1.4478032,17203.0,17202.0,0.02160364]
[1673332843009,1.7948131,17203.0,17202.0,0.02160364]
[1673332843228,1.79397106,17203.0,17202.0,0.02160364]
[1673332843516,1.6202135,17203.0,17202.0,0.02160364]
[1673332843764,1.62105554,17203.0,17202.0,0.02160364]
[1673332844291,1.6202135,17203.0,17202.0,0.02160364]
[1673332845289,1.62105554,17203.0,17202.0,0.02160364]
[1673332845804,1.6152135,17203.0,17202.0,0.02160364]
[1673332846827,1.44195353,17203.0,17202.0,0.02160364]
[1673332847081,1.44195353,17203.0,17202.0,0.38297764]
[1673332847842,1.44195353,17203.0,17202.0,0.02160364]
[1673332848876,1.78896343,17203.0,17202.0,0.02160364]
[1673332849095,1.6152135,17203.0,17202.0,0.02160364]
[1673332849589,1.61605554,17203.0,17202.0,0.02160364]
[1673332850083,1.44195425,17203.0,17202.0,0.02160364]
[1673332850843,1.44195425,17203.0,17202.0,0.38297764]
[1673332851351,1.44195425,17203.0,17202.0,0.02160364]
[1673332852080,1.44279629,17203.0,17202.0,0.02160364]
[1673332852327,1.2682036,17203.0,17202.0,0.02160364]
[1673332852584,1.44194985,17203.0,17202.0,0.02160364]
[1673332852845,1.78895975,17203.0,17202.0,0.02160364]
[1673332853356,1.44194985,17203.0,17202.0,0.02160364]
[1673332853896,1.78895975,17203.0,17202.0,0.02160364]
[1673332854174,1.18132049,17203.0,17202.0,0.38297764]
[1673332855696,1.18132049,17203.0,17202.0,0.02160364]
[1673332855971,1.18216253,17203.0,17202.0,0.02160364]
[1673332856233,1.18132049,17203.0,17202.0,0.02160364]
[1673332857985,1.18132049,17203.0,17202.0,0.38297764]
[1673332861052,1.00757424,17203.0,17202.0,0.38297764]
[1673332861285,1.18132049,17203.0,17202.0,0.38297764]
[1673332861536,1.00757424,17203.0,17202.0,0.38297764]
[1673332863537,1.18132049,17203.0,17202.0,0.38297764]
[1673332863786,1.18132049,17203.0,17202.0,0.38289664]
[1673332864280,1.00757424,17203.0,17202.0,0.38289664]
[1673332865528,1.18132049,17203.0,17202.0,0.38289664]
[1673332868036,1.00757424,17203.0,17202.0,0.38289664]
[1673332868550,0.41309724,17203.0,17202.0,0.38289664]
[1673332870540,0.58684349,17203.0,17202.0,0.38289664]
[1673332870795,0.58184349,17203.0,17202.0,0.38289664]
[1673332873529,0.58184349,17203.0,17202.0,0.02152264]
[1673332874035,0.58184349,17203.0,17202.0,0.38289664]
[1673332874292,0.84247285,17203.0,17202.0,0.38289664]
[1673332874802,0.84247285,17203.0,17202.0,0.02152264]
[1673332875303,0.84247285,17203.0,17202.0,0.38289664]
[1673332876762,0.58184349,17203.0,17202.0,0.38289664]
[1673332877804,0.59654734,17203.0,17202.0,0.38289664]
[1673332885840,0.59738938,17203.0,17202.0,0.38289664]
[1673332886108,0.59654734,17203.0,17202.0,0.38289664]
[1673332887329,0.8571767,17203.0,17202.0,0.38289664]
[1673332889392,0.8571767,17203.0,17202.0,0.02152264]
[1673332890169,0.8571767,17203.0,17202.0,0.38289664]
[1673332891412,0.8571767,17203.0,17202.0,0.02152264]
[1673332892440,0.59654734,17203.0,17202.0,0.02152264]
[1673332893704,0.8571767,17203.0,17202.0,0.02152264]
[1673332895397,0.59654734,17203.0,17202.0,0.38289664]
[1673332895654,0.85801874,17203.0,17202.0,0.38289664]
[1673332895908,0.8571767,17203.0,17202.0,0.02152264]
[1673332896425,0.8571767,17203.0,17202.0,0.38289664]
[1673332897474,0.85801874,17203.0,17202.0,0.38289664]
[1673332897732,0.8571767,17203.0,17202.0,0.38289664]
[1673332898245,0.8571767,17203.0,17202.0,0.38303691]
[1673332898543,0.85801874,17203.0,17202.0,0.38289664]
[1673332899051,0.8571767,17203.0,17202.0,0.38289664]
[1673332899617,0.8571767,17203.0,17202.0,0.02152264]
[1673332901111,0.85801874,17203.0,17202.0,0.02152264]
[1673332901625,0.8571767,17203.0,17202.0,0.02152264]
[1673332902145,0.85801874,17203.0,17202.0,0.02152264]
[1673332903015,0.8571767,17203.0,17202.0,0.02152264]
[1673332906501,0.59654734,17203.0,17202.0,0.02152264]
[1673332906765,0.59654734,17203.0,17202.0,0.38289664]
[1673332907614,0.85801874,17203.0,17202.0,0.02146064]
[1673332908929,0.85801874,17203.0,17202.0,0.38283464]
[1673332908930,0.8571767,17203.0,17202.0,0.38283464]
[1673332909179,0.85801874,17203.0,17202.0,0.38283464]
[1673332909428,0.85801874,17203.0,17202.0,0.02146064]
[1673332911163,0.8571767,17203.0,17202.0,0.02160091]
[1673332911646,0.8571767,17203.0,17202.0,0.02146064]
[1673332917707,0.8571767,17203.0,17202.0,0.38283464]
[1673332918203,0.59654734,17203.0,17202.0,0.38283464]
[1673332918461,0.8571767,17203.0,17202.0,0.38283464]
[1673332918706,0.59654734,17203.0,17202.0,0.38283464]
[1673332919196,0.59738938,17203.0,17202.0,0.38283464]
[1673332919701,0.59654734,17203.0,17202.0,0.38283464]
[1673332923458,0.59654734,17203.0,17202.0,0.55663525]
[1673332923706,0.59654734,17203.0,17202.0,0.38283464]
[1673332925102,0.59654734,17203.0,17202.0,0.55663525]
[1673332925335,0.59654734,17203.0,17202.0,0.38283464]
[1673332926744,0.8571767,17203.0,17202.0,0.38283464]
[1673332926997,0.59654734,17203.0,17202.0,0.38283464]
[1673332928857,0.59654734,17203.0,17202.0,0.02146064]
[1673332929366,0.8571767,17203.0,17202.0,0.02146064]
[1673332930130,0.85801874,17203.0,17202.0,0.02146064]
[1673332930646,0.8571767,17203.0,17202.0,0.02146064]
[1673332932843,1.46415894,17203.0,17202.0,0.02146064]
[1673332933098,1.4641966,17203.0,17202.0,0.02146064]
[1673332933341,1.03132005,17203.0,17202.0,0.02146064]
[1673332934128,1.58020857,17203.0,17202.0,0.02146064]
[1673332934379,2.08073134,17203.0,17202.0,0.02146064]
[1673332934636,1.75326014,17203.0,17202.0,0.02146064]
[1673332935647,2.01384861,17203.0,17202.0,0.02146064]
[1673332935915,1.57928798,17203.0,17202.0,0.02146064]
[1673332939323,1.58013002,17203.0,17202.0,0.02146064]
[1673332939547,1.57928798,17203.0,17202.0,0.02146064]
[1673332940096,1.40597704,17203.0,17202.0,0.02146064]
[1673332940663,1.40681908,17203.0,17202.0,0.02146064]
[1673332940914,1.40597704,17203.0,17202.0,0.02146064]
[1673332942000,1.40681908,17203.0,17202.0,0.02146064]
[1673332942250,1.58013002,17203.0,17202.0,0.02146064]
[1673332942771,1.57928798,17203.0,17202.0,0.02146064]
[1673332943021,1.75382633,17203.0,17202.0,0.02146064]
[1673332943271,1.57928798,17203.0,17202.0,0.02146064]
[1673332943535,1.40597469,17203.0,17202.0,0.02146064]
[1673332945507,1.40681673,17203.0,17202.0,0.02146064]
[1673332945795,1.75382663,17203.0,17202.0,0.02146064]
[1673332946532,1.40681673,17203.0,17202.0,0.02146064]
[1673332947051,1.75382663,17203.0,17202.0,0.02146064]
[1673332948131,1.40597469,17203.0,17202.0,0.02146064]
[1673332948632,1.57928798,17203.0,17202.0,0.02146064]
[1673332949613,1.58013002,17203.0,17202.0,0.02146064]
[1673332951735,1.58006111,17203.0,17202.0,0.02146064]
[1673332951938,1.57921907,17203.0,17202.0,0.02146064]
[1673332952177,1.90651148,17203.0,17202.0,0.02146064]
[1673332952431,2.0129379,17203.0,17202.0,0.02146064]
[1673332952683,1.57921931,17203.0,17202.0,0.02146064]
[1673332954167,2.22637808,17203.0,17202.0,0.02139979]
[1673332954412,2.61126418,17203.0,17202.0,0.02139979]
[1673332954663,1.76825704,17203.0,17202.0,0.02139979]
[1673332954922,2.17754358,17203.0,17202.0,0.02139979]
[1673332955431,2.17838562,17203.0,17202.0,0.02139979]
[1673332955695,2.6124157,17203.0,17202.0,0.02139979]
[1673332955945,2.3497197,17203.0,17202.0,0.02139979]
[1673332956195,2.6124157,17203.0,17202.0,0.02139979]
[1673332956440,2.34971612,17203.0,17202.0,0.02139979]
[1673332956729,2.61241212,17203.0,17202.0,0.02139979]
[1673332956941,2.05446697,17203.0,17202.0,0.02139979]
[1673332957181,1.92677097,17203.0,17202.0,0.02239979]
[1673332957441,2.62347858,17203.0,17202.0,0.02239979]
[1673332958712,2.36078258,17203.0,17202.0,0.02239979]
[1673332958960,2.62347858,17203.0,17202.0,0.02239979]
[1673332959458,1.92677097,17203.0,17202.0,0.02239979]
[1673332959693,2.18946697,17203.0,17202.0,0.02239979]
[1673332960182,2.62331393,17203.0,17202.0,0.02239979]
[1673332960441,2.36061793,17203.0,17202.0,0.02239979]
[1673332960693,2.62331393,17203.0,17202.0,0.02239979]
[1673332961441,2.36061793,17203.0,17202.0,0.02239979]
[1673332961705,2.62331393,17203.0,17202.0,0.02239979]
[1673332961960,2.36061793,17203.0,17202.0,0.02239979]
[1673332962212,2.62331393,17203.0,17202.0,0.02239979]
[1673332962724,2.18946697,17203.0,17202.0,0.02239979]
[1673332963484,2.62239859,17203.0,17202.0,0.02239979]
[1673332963734,2.18862493,17203.0,17202.0,0.02239979]
[1673332963996,2.35969761,17203.0,17202.0,0.02239979]
[1673332964249,2.18862493,17203.0,17202.0,0.02239979]
[1673332965012,2.35960433,17203.0,17202.0,0.02239979]
[1673332965267,2.18862493,17203.0,17202.0,0.02239979]
[1673332966586,1.92592893,17203.0,17202.0,0.02239979]
[1673332966847,2.18862493,17203.0,17202.0,0.02239979]
[1673332967091,2.36043883,17203.0,17202.0,0.02239979]
[1673332967337,2.62310573,17203.0,17202.0,0.02239979]
[1673332967579,1.92677097,17203.0,17202.0,0.02239979]
[1673332967832,2.18946697,17203.0,17202.0,0.02239979]
[1673332968139,1.92677097,17203.0,17202.0,0.02239979]
[1673332968381,2.18946697,17203.0,17202.0,0.02239979]
[1673332969113,1.92677097,17203.0,17202.0,0.02239979]
[1673332969357,2.18946697,17203.0,17202.0,0.02239979]
[1673332969872,2.05446697,17203.0,17202.0,0.02139979]
[1673332970116,1.92777097,17203.0,17202.0,0.02239979]
[1673332970373,2.19046697,17203.0,17202.0,0.02239979]
[1673332971390,2.72637981,17203.0,17202.0,0.02239979]
[1673332971908,2.20624389,17203.0,17202.0,0.02239979]
[1673332974495,2.49580187,17203.0,17202.0,0.02239979]
[1673332976181,2.20624389,17203.0,17202.0,0.02229685]
[1673332976418,2.72637981,17203.0,17202.0,0.02229685]
[1673332976659,2.46368381,17203.0,17202.0,0.02229685]
[1673332976895,2.72637981,17203.0,17202.0,0.02229685]
[1673332977774,2.20624389,17203.0,17202.0,0.02229685]
[1673332978032,2.20540185,17203.0,17202.0,0.02229685]
[1673332978299,1.94270585,17203.0,17202.0,0.02229685]
[1673332978549,2.20540185,17203.0,17202.0,0.02229685]
[1673332979563,2.23217963,17203.0,17202.0,0.02229685]
[1673332979816,2.49487563,17203.0,17202.0,0.02229685]
[1673332980300,2.20540185,17203.0,17202.0,0.02229685]
[1673332981590,2.20624389,17203.0,17202.0,0.02229685]
[1673332981838,1.94354789,17203.0,17202.0,0.02229685]
[1673332982093,2.20624389,17203.0,17202.0,0.02229685]
[1673332982601,1.94354789,17203.0,17202.0,0.02229685]
[1673332982842,2.20624389,17203.0,17202.0,0.02229685]
[1673332983330,1.94354789,17203.0,17202.0,0.02229685]
[1673332983580,2.20624389,17203.0,17202.0,0.02229685]
[1673332983821,1.94354789,17203.0,17202.0,0.02229685]
[1673332984078,2.20624389,17203.0,17202.0,0.02229685]
[1673332984574,1.94354789,17203.0,17202.0,0.02229685]
[1673332984830,2.20624389,17203.0,17202.0,0.02229685]
[1673332985073,1.94354789,17203.0,17202.0,0.02229685]
[1673332985351,2.20624389,17203.0,17202.0,0.02229685]
[1673332985606,1.94354789,17203.0,17202.0,0.02229685]
[1673332985937,2.20624389,17203.0,17202.0,0.02229685]
[1673332986136,2.20540185,17203.0,17202.0,0.02229685]
[1673332987390,1.94270585,17203.0,17202.0,0.02229685]
[1673332987652,2.20540185,17203.0,17202.0,0.02229685]
[1673332988160,1.94270585,17203.0,17202.0,0.02229685]
[1673332988420,2.20540185,17203.0,17202.0,0.02229685]
[1673332988661,2.37330185,17203.0,17202.0,0.02229685]
[1673332988909,2.89343777,17203.0,17202.0,0.02229685]
[1673332989428,2.37414389,17203.0,17202.0,0.02229685]
[1673332989726,2.89427981,17203.0,17202.0,0.02229685]
[1673332993173,2.63158381,17203.0,17202.0,0.02229685]
[1673332993426,2.89427981,17203.0,17202.0,0.02229685]
[1673332993660,2.63158381,17203.0,17202.0,0.02229685]
[1673332993899,2.89427981,17203.0,17202.0,0.02229685]
[1673332994381,2.63158381,17203.0,17202.0,0.02229685]
[1673332994627,2.89427981,17203.0,17202.0,0.02229685]
[1673332994916,3.20062779,17203.0,17202.0,0.02229685]
[1673332996606,2.89343777,17203.0,17202.0,0.02229685]
[1673332996843,1.72504158,17203.0,17202.0,0.02229685]
[1673332997326,0.91857298,17203.0,17202.0,0.02229685]
[1673332997567,1.36303174,17203.0,17202.0,0.02229685]
[1673332997802,1.2164412,17203.0,17202.0,0.55737607]
[1673332998038,1.04278003,17203.0,17202.0,0.55737607]
[1673332999048,0.8690184,17203.0,17202.0,0.55737607]
[1673333007057,0.60848536,17203.0,17202.0,0.55737607]
[1673333007291,0.43488244,17203.0,17202.0,0.55737607]
[1673333011555,0.43488244,17203.0,17202.0,0.91875007]
[1673333012517,0.29888244,17203.0,17202.0,0.91775007]